Workbook

Sheet Inputs
B1: BSUoS Report:
B3: Input Dates | C3: Date
B4: Report Date | C4: 2018-08-09
B5: Input Data From | C5: 2018-07-09
B6: Input Data To | C6: 2018-08-12
B8: Step | C8: Macro | D8: Complete?
B9: Set-up spreadsheet | D9: Y
B10: Import Demand Data | D10: Y
B11: Import Cost Data | D11: Y
B12: Export Report | D12: N
B13: Save & close | D13: N
B15: Date | C15: Initial Forecast | D15: -
B16: =Input_Data_To -> 2018-08-12 | C16: =(VLOOKUP(B16,Data!A$2:E$2863,4,))/2 -> 2.562224485
B17: =IF(B16-1<Input_Data_From,"",B16-1) -> 2018-08-11 | C17: =(VLOOKUP(B17,Data!A$2:E$2863,4,))/2 -> 2.512684222
B18: 2018-08-10 | C18: =(VLOOKUP(B18,Data!A$2:E$2863,4,))/2 -> 2.282615371
B19: 2018-08-09 | C19: =(VLOOKUP(B19,Data!A$2:E$2863,4,))/2 -> 2.156370028
B20: 2018-08-08 | C20: =(VLOOKUP(B20,Data!A$2:E$2863,4,))/2 -> 0.9884467742
B21: 2018-08-07 | C21: =(VLOOKUP(B21,Data!A$2:E$2863,4,))/2 -> 1.225891438
B22: 2018-08-06 | C22: =(VLOOKUP(B22,Data!A$2:E$2863,4,))/2 -> 1.021446946
B23: 2018-08-05 | C23: =(VLOOKUP(B23,Data!A$2:E$2863,4,))/2 -> 1.252304066
B24: 2018-08-04 | C24: =(VLOOKUP(B24,Data!A$2:E$2863,4,))/2 -> 1.333632778
B25: 2018-08-03 | C25: =(VLOOKUP(B25,Data!A$2:E$2863,4,))/2 -> 1.024245009
B26: 2018-08-02 | C26: =(VLOOKUP(B26,Data!A$2:E$2863,4,))/2 -> 1.95661368
B27: 2018-08-01 | C27: =(VLOOKUP(B27,Data!A$2:E$2863,4,))/2 -> 3.438889073
B28: 2018-07-31 | C28: =(VLOOKUP(B28,Data!A$2:E$2863,4,))/2 -> 4.742958811
B29: 2018-07-30 | C29: =(VLOOKUP(B29,Data!A$2:E$2863,4,))/2 -> 2.320254849
B30: 2018-07-29 | C30: =(VLOOKUP(B30,Data!A$2:E$2863,4,))/2 -> 8.224332203
B31: 2018-07-28 | C31: =(VLOOKUP(B31,Data!A$2:E$2863,4,))/2 -> 9.302892334
B32: 2018-07-27 | C32: =(VLOOKUP(B32,Data!A$2:E$2863,4,))/2 -> 1.551858791
B33: 2018-07-26 | C33: =(VLOOKUP(B33,Data!A$2:E$2863,4,))/2 -> 2.155880784
B34: 2018-07-25 | C34: =(VLOOKUP(B34,Data!A$2:E$2863,4,))/2 -> 0.8682850821
B35: 2018-07-24 | C35: =(VLOOKUP(B35,Data!A$2:E$2863,4,))/2 -> 0.760106693
B36: 2018-07-23 | C36: =(VLOOKUP(B36,Data!A$2:E$2863,4,))/2 -> 1.300889593
B37: 2018-07-22 | C37: =(VLOOKUP(B37,Data!A$2:E$2863,4,))/2 -> 1.578926784
B38: 2018-07-21 | C38: =(VLOOKUP(B38,Data!A$2:E$2863,4,))/2 -> 1.120938965
B39: 2018-07-20 | C39: =(VLOOKUP(B39,Data!A$2:E$2863,4,))/2 -> 0.850392322
B40: 2018-07-19 | C40: =(VLOOKUP(B40,Data!A$2:E$2863,4,))/2 -> 0.9421634199
B41: 2018-07-18 | C41: =(VLOOKUP(B41,Data!A$2:E$2863,4,))/2 -> 0.9798586838
B42: 2018-07-17 | C42: =(VLOOKUP(B42,Data!A$2:E$2863,4,))/2 -> 1.469640869
B43: 2018-07-16 | C43: =(VLOOKUP(B43,Data!A$2:E$2863,4,))/2 -> 1.50674326
B44: 2018-07-15 | C44: =(VLOOKUP(B44,Data!A$2:E$2863,4,))/2 -> 2.313630152
B45: 2018-07-14 | C45: =(VLOOKUP(B45,Data!A$2:E$2863,4,))/2 -> 1.596659903
B46: 2018-07-13 | C46: =(VLOOKUP(B46,Data!A$2:E$2863,4,))/2 -> 1.411550676
B47: 2018-07-12 | C47: =(VLOOKUP(B47,Data!A$2:E$2863,4,))/2 -> 1.085110336
B48: 2018-07-11 | C48: =(VLOOKUP(B48,Data!A$2:E$2863,4,))/2 -> 0.9117725042
B49: 2018-07-10 | C49: =(VLOOKUP(B49,Data!A$2:E$2863,4,))/2 -> 1.312339855
B50: 2018-07-09 | C50: =(VLOOKUP(B50,Data!A$2:E$2863,4,))/2 -> 1.241378632

Sheet Report
B2: Daily BSUoS Forecast | F2: nationalgrid
F6: =Report_Date -> 2018-08-09
B9: This report contains National Grid's day-ahead forecasts of per-MWh BSUoS costs (Balancing Services Use of System, as defined in the CUSC). A forecast at monthly resolution reaching to the end of the current financial year can be found in the MBSS (Monthly Balancing Services Statement). Model adjusted 23/08/17.
B11: Date | C11: Initial Forecast
B12: =Input_Data_To -> 2018-08-12 | C12: =(VLOOKUP(B12,Data!A$2:E$2863,4,))/2 -> 2.562224485
B13: =IF(B12-1<Input_Data_From,"",B12-1) -> 2018-08-11 | C13: =(VLOOKUP(B13,Data!A$2:E$2863,4,))/2 -> 2.512684222
B14: 2018-08-10 | C14: =(VLOOKUP(B14,Data!A$2:E$2863,4,))/2 -> 2.282615371
B15: 2018-08-09 | C15: =(VLOOKUP(B15,Data!A$2:E$2863,4,))/2 -> 2.156370028
B16: 2018-08-08 | C16: =(VLOOKUP(B16,Data!A$2:E$2863,4,))/2 -> 0.9884467742
B17: 2018-08-07 | C17: =(VLOOKUP(B17,Data!A$2:E$2863,4,))/2 -> 1.225891438
B18: 2018-08-06 | C18: =(VLOOKUP(B18,Data!A$2:E$2863,4,))/2 -> 1.021446946
B19: 2018-08-05 | C19: =(VLOOKUP(B19,Data!A$2:E$2863,4,))/2 -> 1.252304066
B20: 2018-08-04 | C20: =(VLOOKUP(B20,Data!A$2:E$2863,4,))/2 -> 1.333632778
B21: 2018-08-03 | C21: =(VLOOKUP(B21,Data!A$2:E$2863,4,))/2 -> 1.024245009
B22: 2018-08-02 | C22: =(VLOOKUP(B22,Data!A$2:E$2863,4,))/2 -> 1.95661368
B23: 2018-08-01 | C23: =(VLOOKUP(B23,Data!A$2:E$2863,4,))/2 -> 3.438889073
B24: 2018-07-31 | C24: =(VLOOKUP(B24,Data!A$2:E$2863,4,))/2 -> 4.742958811
B25: 2018-07-30 | C25: =(VLOOKUP(B25,Data!A$2:E$2863,4,))/2 -> 2.320254849
B26: 2018-07-29 | C26: =(VLOOKUP(B26,Data!A$2:E$2863,4,))/2 -> 8.224332203
B27: 2018-07-28 | C27: =(VLOOKUP(B27,Data!A$2:E$2863,4,))/2 -> 9.302892334
B28: 2018-07-27 | C28: =(VLOOKUP(B28,Data!A$2:E$2863,4,))/2 -> 1.551858791
B29: 2018-07-26 | C29: =(VLOOKUP(B29,Data!A$2:E$2863,4,))/2 -> 2.155880784
B30: 2018-07-25 | C30: =(VLOOKUP(B30,Data!A$2:E$2863,4,))/2 -> 0.8682850821
B31: 2018-07-24 | C31: =(VLOOKUP(B31,Data!A$2:E$2863,4,))/2 -> 0.760106693
B32: 2018-07-23 | C32: =(VLOOKUP(B32,Data!A$2:E$2863,4,))/2 -> 1.300889593
B33: 2018-07-22 | C33: =(VLOOKUP(B33,Data!A$2:E$2863,4,))/2 -> 1.578926784
B34: 2018-07-21 | C34: =(VLOOKUP(B34,Data!A$2:E$2863,4,))/2 -> 1.120938965
B35: 2018-07-20 | C35: =(VLOOKUP(B35,Data!A$2:E$2863,4,))/2 -> 0.850392322
B36: 2018-07-19 | C36: =(VLOOKUP(B36,Data!A$2:E$2863,4,))/2 -> 0.9421634199
B37: 2018-07-18 | C37: =(VLOOKUP(B37,Data!A$2:E$2863,4,))/2 -> 0.9798586838
B38: 2018-07-17 | C38: =(VLOOKUP(B38,Data!A$2:E$2863,4,))/2 -> 1.469640869
B39: 2018-07-16 | C39: =(VLOOKUP(B39,Data!A$2:E$2863,4,))/2 -> 1.50674326
B40: 2018-07-15 | C40: =(VLOOKUP(B40,Data!A$2:E$2863,4,))/2 -> 2.313630152
B41: 2018-07-14 | C41: =(VLOOKUP(B41,Data!A$2:E$2863,4,))/2 -> 1.596659903
B42: 2018-07-13 | C42: =(VLOOKUP(B42,Data!A$2:E$2863,4,))/2 -> 1.411550676
B43: 2018-07-12 | C43: =(VLOOKUP(B43,Data!A$2:E$2863,4,))/2 -> 1.085110336
B44: 2018-07-11 | C44: =(VLOOKUP(B44,Data!A$2:E$2863,4,))/2 -> 0.9117725042
B45: 2018-07-10 | C45: =(VLOOKUP(B45,Data!A$2:E$2863,4,))/2 -> 1.312339855
B46: 2018-07-09 | C46: =(VLOOKUP(B46,Data!A$2:E$2863,4,))/2 -> 1.241378632
B48: CUSC | C48: Indicative Outturn can now be found on the website under:
B49: MBSS | C49: Daily Balancing Costs (BSUoS)
B51: Disclaimer
B52: This forecast is published without prejudice and whilst every effort has been made to ensure the accuracy of the information, it is subject to several estimations and forecasts and may not bear relation to either the indicative or actual tariffs National Grid will publish at later dates.

Sheet Data
A1: BSUoS data: | B1: Forecast Demand | C1: IBC | D1: Forecast BSUoS
A2: 2015-04-01 | B2: 858337.75 | D2: =C2*1000000/B2 -> 
A3: 2015-04-02 | B3: 881968.4167 | D3: =C3*1000000/B3 -> 
A4: 2015-04-03 | B4: 781351.4167
A5: 2015-04-04 | B5: 735119.5833
A6: 2015-04-05 | B6: 710810.25
A7: 2015-04-06 | B7: 728617.6667
A8: 2015-04-07 | B8: 834689.5833
A9: 2015-04-08 | B9: 847339.1667
A10: 2015-04-09 | B10: 852126.8333
A11: 2015-04-10 | B11: 838750.25
A12: 2015-04-11 | B12: 735119.5833
A13: 2015-04-12 | B13: 710810.25
A14: 2015-04-13 | B14: 728617.6667
A15: 2015-04-14 | B15: 834689.5833
A16: 2015-04-15 | B16: 847339.1667
A17: 2015-04-16 | B17: 852126.8333
A18: 2015-04-17 | B18: 838750.25
A19: 2015-04-18 | B19: 735119.5833
A20: 2015-04-19 | B20: 710810.25
A21: 2015-04-20 | B21: 808452.25
A22: 2015-04-21 | B22: 815808.25
A23: 2015-04-22 | B23: 817100.5833
A24: 2015-04-23 | B24: 815186.9167
A25: 2015-04-24 | B25: 798538.5833
A26: 2015-04-25 | B26: 708715
A27: 2015-04-26 | B27: 684561.5833
A28: 2015-04-27 | B28: 807037.3333
A29: 2015-04-28 | B29: 814777.75
A30: 2015-04-29 | B30: 790886.8333
A31: 2015-04-30 | B31: 769569.9167
A32: 2015-05-01 | B32: 767444.5833
A33: 2015-05-02 | B33: 688544.6667
A34: 2015-05-03 | B34: 650859.5
A35: 2015-05-04 | B35: 681252.5833
A36: 2015-05-05 | B36: 730812.6667
A37: 2015-05-06 | B37: 743468.4167
A38: 2015-05-07 | B38: 752812.0833
A39: 2015-05-08 | B39: 756564
A40: 2015-05-09 | B40: 655351.6667
A41: 2015-05-10 | B41: 652669.4167
A42: 2015-05-11 | B42: 697038.9167
A43: 2015-05-12 | B43: 756742.8333
A44: 2015-05-13 | B44: 736731.3333
A45: 2015-05-14 | B45: 788620
A46: 2015-05-15 | B46: 773853.1667
A47: 2015-05-16 | B47: 657653.25
A48: 2015-05-17 | B48: 652669.4167
A49: 2015-05-18 | B49: 697038.9167
A50: 2015-05-19 | B50: 755558.0833
A51: 2015-05-20 | B51: 744412.9167
A52: 2015-05-21 | B52: 739555.25
A53: 2015-05-22 | B53: 733356.9167
A54: 2015-05-23 | B54: 643995.6667
A55: 2015-05-24 | B55: 616505.75
A56: 2015-05-25 | B56: 697038.9167
A57: 2015-05-26 | B57: 755558.0833
A58: 2015-05-27 | B58: 744412.9167
A59: 2015-05-28 | B59: 730423.25
A60: 2015-05-29 | B60: 728557
A61: 2015-05-30 | B61: 630243.6667
A62: 2015-05-31 | B62: 614851.9167
A63: 2015-06-01 | B63: 722729.6667
A64: 2015-06-02 | B64: 700237.9167
A65: 2015-06-03 | B65: 705702
A66: 2015-06-04 | B66: 722844.5833
A67: 2015-06-05 | B67: 713511.4167 | D67: =C67*1000000/B67 -> 
A68: 2015-06-06 | B68: 580039.3333
A69: 2015-06-07 | B69: 593085.75
A70: 2015-06-08 | B70: 710402.25
A71: 2015-06-09 | B71: 727229.0833
A72: 2015-06-10 | B72: 713614.4167
A73: 2015-06-11 | B73: 707135.5833
A74: 2015-06-12 | B74: 716208
A75: 2015-06-13 | B75: 645161
A76: 2015-06-14 | B76: 633437.25
A77: 2015-06-15 | B77: 741983.1667
A78: 2015-06-16 | B78: 726455.3333
A79: 2015-06-17 | B79: 715291.3333
A80: 2015-06-18 | B80: 689181.3333
A81: 2015-06-19 | B81: 701545.9167
A82: 2015-06-20 | B82: 648475.6667
A83: 2015-06-21 | B83: 603866
A84: 2015-06-22 | B84: 739485.6667
A85: 2015-06-23 | B85: 714839.0833
A86: 2015-06-24 | B86: 721495.5833
A87: 2015-06-25 | B87: 728107
A88: 2015-06-26 | B88: 708707.8333
A89: 2015-06-27 | B89: 601643.9167
A90: 2015-06-28 | B90: 605025.5833
A91: 2015-06-29 | B91: 715083.4167
A92: 2015-06-30 | B92: 709666.1667
A93: 2015-07-01 | B93: 738738.75
A94: 2015-07-02 | B94: 757026.5833
A95: 2015-07-03 | B95: 704159.3333
A96: 2015-07-04 | B96: 613587.1667
A97: 2015-07-05 | B97: 611355.8333
A98: 2015-07-06 | B98: 719396.3333
A99: 2015-07-07 | B99: 711307.4167
A100: 2015-07-08 | B100: 709731.5833
A101: 2015-07-09 | B101: 698124.0833
A102: 2015-07-10 | B102: 683574.5833
A103: 2015-07-11 | B103: 603178.3333
A104: 2015-07-12 | B104: 600729.25
A105: 2015-07-13 | B105: 729459.5
A106: 2015-07-14 | B106: 746311.9167
A107: 2015-07-15 | B107: 711305.6667
A108: 2015-07-16 | B108: 714776.5833
A109: 2015-07-17 | B109: 671484.6667
A110: 2015-07-18 | B110: 576869.9167
A111: 2015-07-19 | B111: 615952.5833
A112: 2015-07-20 | B112: 713991.9167
A113: 2015-07-21 | B113: 689583.25
A114: 2015-07-22 | B114: 708531.75
A115: 2015-07-23 | B115: 699633.5
A116: 2015-07-24 | B116: 740602.25
A117: 2015-07-25 | B117: 590932.9167
A118: 2015-07-26 | B118: 623904.4167
A119: 2015-07-27 | B119: 690432.4167
A120: 2015-07-28 | B120: 697373.6667
A121: 2015-07-29 | B121: 716456.9167
A122: 2015-07-30 | B122: 696664.0833
A123: 2015-07-31 | B123: 672210.5
A124: 2015-08-01 | B124: 602805.8333
A125: 2015-08-02 | B125: 592648.0833
A126: 2015-08-03 | B126: 671375.1667
A127: 2015-08-04 | B127: 667747.8333
A128: 2015-08-05 | B128: 698828.9167
A129: 2015-08-06 | B129: 689826.6667
A130: 2015-08-07 | B130: 678920.4167
A131: 2015-08-08 | B131: 578867.5833 | D131: =C131*1000000/B131 -> 
A132: 2015-08-09 | B132: 591873.9167
A133: 2015-08-10 | B133: 706068
A134: 2015-08-11 | B134: 703866.25
A135: 2015-08-12 | B135: 700114.5833
A136: 2015-08-13 | B136: 729985.5
A137: 2015-08-14 | B137: 721262.4167
A138: 2015-08-15 | B138: 611413.1667
A139: 2015-08-16 | B139: 611912.4167
A140: 2015-08-17 | B140: 719685.1667
A141: 2015-08-18 | B141: 728608.9167
A142: 2015-08-19 | B142: 726550.1667
A143: 2015-08-20 | B143: 711995.3333
A144: 2015-08-21 | B144: 706353.4167
A145: 2015-08-22 | B145: 629162.5833
A146: 2015-08-23 | B146: 607513.3333
A147: 2015-08-24 | B147: 721010.6667
A148: 2015-08-25 | B148: 733229.8333
A149: 2015-08-26 | B149: 739110.5833
A150: 2015-08-27 | B150: 732981.4167
A151: 2015-08-28 | B151: 721352.75
A152: 2015-08-29 | B152: 633843.25
A153: 2015-08-30 | B153: 603682.5833
A154: 2015-08-31 | B154: 646080.5833
A155: 2015-09-01 | B155: 710342.0833
A156: 2015-09-02 | B156: 728624.4167
A157: 2015-09-03 | B157: 736380.3333
A158: 2015-09-04 | B158: 726801.0833
A159: 2015-09-05 | B159: 628317.9167
A160: 2015-09-06 | B160: 609093.8333
A161: 2015-09-07 | B161: 749788.5833
A162: 2015-09-08 | B162: 774964.25
A163: 2015-09-09 | B163: 757616.9167
A164: 2015-09-10 | B164: 722774.4167
A165: 2015-09-11 | B165: 706414.9167
A166: 2015-09-12 | B166: 633111.75
A167: 2015-09-13 | B167: 646094.8333
A168: 2015-09-14 | B168: 761774.5833
A169: 2015-09-15 | B169: 764784
A170: 2015-09-16 | B170: 778857.4167
A171: 2015-09-17 | B171: 753801.25
A172: 2015-09-18 | B172: 748242.9167
A173: 2015-09-19 | B173: 665247.4167
A174: 2015-09-20 | B174: 654864.8333
A175: 2015-09-21 | B175: 784235.75
A176: 2015-09-22 | B176: 769863
A177: 2015-09-23 | B177: 761708.6667
A178: 2015-09-24 | B178: 749849.75
A179: 2015-09-25 | B179: 731881.0833
A180: 2015-09-26 | B180: 656950.5
A181: 2015-09-27 | B181: 646965.75
A182: 2015-09-28 | B182: 746391.8333
A183: 2015-09-29 | B183: 758737.5833
A184: 2015-09-30 | B184: 752154.25
A185: 2015-10-01 | B185: 762549.5
A186: 2015-10-02 | B186: 754649.3333
A187: 2015-10-03 | B187: 692928.9167
A188: 2015-10-04 | B188: 671717.75
A189: 2015-10-05 | B189: 771975
A190: 2015-10-06 | B190: 784485.5
A191: 2015-10-07 | B191: 791322.3333
A192: 2015-10-08 | B192: 799331
A193: 2015-10-09 | B193: 782601.5833
A194: 2015-10-10 | B194: 705750.4167
A195: 2015-10-11 | B195: 682022.0833 | D195: =C195*1000000/B195 -> 
A196: 2015-10-12 | B196: 801447.1667
A197: 2015-10-13 | B197: 822785.5
A198: 2015-10-14 | B198: 823429.5833
A199: 2015-10-15 | B199: 831258
A200: 2015-10-16 | B200: 814272.5833
... 1083 more rows

Sheet Constants
B1: Constants:
B3: Constant | C3: Value | D3: Comment
G4: =IF(B4="","",B4&" = Range("&B4&")") -> 
B5: internal_BSUoS_cost_per_year | C5: 164 | D5: £, millions
B6: forecast_BSIS_profit_per_year | C6: 8 | D6: £, millions
B7: black_start_contract_costs_per_day | C7: 0.123 | D7: £, millions
B8: days_per_year | C8: 365
B9: hours_per_SP | C9: 0.5
B11: DA_report_dir | C11: \\uk.corporg.net\NGTDFS$\Group\OandT\OptRisk\Operational_Requirements_WOKH\32_Electricity Incentives Development\Performance\ROP\FY_1819\Sent_To_Finance
B13: forecast_values_wkst | D13: Name of worksheet
B14: forecast_values_date_col | D14: Date is in column XX
B15: forecast_values_totals_col | D15: "Overall" cost for each day is in column XX
B17: outturn_values_wkst | C17: Outturn_Daily | D17: Name of worksheet
B18: outturn_values_date_col | C18: 3 | D18: Date is in column XX
B19: outturn_values_totals_col | C19: 4 | D19: "IBC" cost for each day is in column XX
B21: inputs_wkst | C21: Inputs | D21: Name of worksheet
B23: report_wkst | C23: Report | D23: Name of worksheet
B25: data_wkst | C25: Data | D25: Name of worksheet
B26: data_date_col | C26: 1
B27: data_forecast_demand_col | C27: 2
B28: data_IBC_col | C28: 3
B29: data_forecast_int_col
B30: data_forecast_BSIS_col
B31: data_forecast_BSUoS_col | C31: 4
B32: data_outturn_demand_col
B33: data_outturn_ext_col
B34: data_outturn_int_col
B35: data_outturn_BSIS_col
B36: data_outturn_BSUoS_col

Sheet Version Control
B1: Version Control:
B3: Version | C3: Date Implemented | D3: Change | E3: Implementor | F3: Trading Database Change & Failure Risk Register Updated
B4: 1 | C4: 2015-05-12 | D4: Created | E4: Robert Westmancoat | F4: Yes
B5: 2.1 | C5: 2017-08-23 | D5: BSUoS Internal and BSIS updated on the "Constants" sheet to current data, black start costs included | E5: Zoe Carlin | F5: No
